fUST/lending_fUST_20250524
["ID","MTS","AMOUNT","RATE_DAILY","PERIOD"]
[362143146,1748033447215,-641.01871866,0.00020548,2]
[362143147,1748033447225,-641.01871866,0.00020548,2]
[362143148,1748033447234,-641.01871866,0.00020548,2]
[362143149,1748033447244,-641.01871866,0.00020548,2]
[362143150,1748033447254,-641.01871866,0.00020548,2]
[362143151,1748033447263,-641.01871866,0.00020548,2]
[362143152,1748033447273,-641.01871866,0.00020548,2]
[362143153,1748033447426,-641.01871866,0.00020548,2]
[362143154,1748033447437,-641.01871866,0.00020548,2]
[362143155,1748033447449,-723.37640715,0.00020548,2]
[362143156,1748033447460,-723.37640715,0.00020548,2]
[362143157,1748033447470,-723.37640715,0.00020548,2]
[362143158,1748033447480,-723.37640715,0.00020548,2]
[362143159,1748033447489,-723.37640715,0.00020548,2]
[362143160,1748033447500,-723.37640715,0.00020548,2]
[362143161,1748033447510,-723.37640715,0.00020548,2]
[362143162,1748033447522,-723.37640715,0.00020548,2]
[362143163,1748033447532,-239.84119403,0.00020738,2]
[362143164,1748033447542,-830.58459049,0.00020762,3]
[362143165,1748033447552,-430.0,0.00020821,2]
[362143166,1748033447562,-3000.0,0.00021,2]
[362143167,1748033447574,-3000.0,0.0002101,2]
[362143168,1748033447584,-3000.0,0.0002102,2]
[362143169,1748033447593,-3000.0,0.0002103,2]
[362143170,1748033447603,-830.58459049,0.00021038,4]
[362143171,1748033447613,-3000.0,0.0002104,2]
[362143172,1748033447622,-3000.0,0.0002105,2]
[362143173,1748033447631,-3000.0,0.0002106,2]
[362143174,1748033447642,-3000.0,0.0002107,2]
[362143175,1748033447651,-3000.0,0.0002108,2]
[362143176,1748033447660,-3000.0,0.0002109,2]
[362143177,1748033447670,-430.0,0.00021095,2]
[362143178,1748033447679,-3556.401292,0.000211,2]
[362143179,1748033447688,-253.0,0.00021123,2]
[362143180,1748033447698,-321.124,0.00021229,2]
[362143181,1748033447708,-187.36639068,0.0002126,2]
[362143182,1748033447718,-830.58459049,0.00021314,5]
[362143183,1748033447728,-249.24112847,0.00021369,2]
[362143184,1748033447737,-830.58459049,0.0002159,5]
[362143185,1748033447748,-494.85694224,0.00021716,5]
[362143186,1748033447758,-830.58459049,0.00021866,6]
[362143187,1748033447767,-432.95490916,0.00021917,2]
[362143188,1748033447776,-500.0,0.00021917,2]
[362143189,1748033447786,-960.0,0.00022084,2]
[362143190,1748033447795,-1811.237,0.00022084,2]
[362143191,1748033447806,-183.701,0.00022084,2]
[362143192,1748033447815,-151.0,0.000221,5]
[362143193,1748033447826,-248.71531821,0.00022107,2]
[362143194,1748033447835,-830.58459049,0.00022141,6]
[362143195,1748033447846,-830.58459049,0.00022417,7]
[362143196,1748033447857,-500.0,0.00022465,2]
[362143197,1748033447867,-700.0,0.00022683,2]
[362143198,1748033447877,-830.58459049,0.00022693,7]
[362143199,1748033447887,-187.36639068,0.000229,2]
[362143200,1748033447896,-830.58459049,0.00022969,8]
[362143201,1748033447906,-500.0,0.00023,2]
[362143202,1748033447916,-345.22748998,0.00023,2]
[362143203,1748033447926,-406438.80711935,0.00023,20]
[362143204,1748033447935,-353.78,0.00023,7]
[362143205,1748033447944,-151.0,0.00023,9]
[362143206,1748033447954,-422.85710789,0.00023,3]
[362143207,1748033447964,-200.0,0.0002301,6]
[362143208,1748033447976,-500.0,0.00023014,2]
[362143209,1748033447986,-500.0,0.00023078,2]
[362143210,1748033447996,-500.0,0.00023089,2]
[362143211,1748033448006,-500.0,0.00023243,2]
[362143212,1748033448016,-830.58459049,0.00023245,8]
[362143213,1748033448026,-5696.96,0.00023287,2]
[362143214,1748033448036,-500.0,0.00023382,2]
[362143215,1748033448046,-193.42212184,0.00023415,2]
[362143216,1748033448056,-257.91778498,0.00023476,2]
[362143217,1748033448066,-830.58459049,0.00023521,9]
[362143218,1748033448077,-500.0,0.00023525,2]
[362143219,1748033448087,-500.0,0.00023665,2]
[362143220,1748033448096,-500.0,0.00023691,2]
[362143221,1748033448106,-500.0,0.00023764,2]
[362143222,1748033448115,-700.0,0.00023779,2]
[362143223,1748033448125,-830.58459049,0.00023797,9]
[362143224,1748033448135,-293075.78569969,0.000238,10]
[362143225,1748033448145,-500.0,0.00023802,2]
[362143226,1748033448155,-2018.70573506,0.000239,2]
[362143227,1748033448192,-698.914193,0.00016438,2]
[362143228,1748033448202,-698.914193,0.00016438,2]
[362143229,1748033448213,-698.914193,0.00016438,2]
[362143230,1748033448224,-698.914193,0.00016438,2]
[362143231,1748033448233,-12094.40083406,0.000239,2]
[362143232,1748033448243,-500.0,0.00023911,2]
[362143233,1748033448254,-5000.0,0.00023936,2]
[362143234,1748033448265,-5000.0,0.00023936,2]
[362143235,1748033448275,-5000.0,0.00023936,2]
[362143236,1748033448285,-5000.0,0.00023936,2]
[362143237,1748033448295,-5000.0,0.00023936,2]
[362143238,1748033448305,-164.804225,0.00023973,2]
[362143239,1748033448315,-8481.99279549,0.00024,2]
[362143240,1748033448326,-830.58459049,0.00024072,10]
[362143241,1748033448336,-2200.0,0.00024085,2]
[362143242,1748033448347,-500.0,0.00024101,2]
[362143243,1748033448357,-210.86964316,0.00024111,2]
[362143244,1748033448370,-500.0,0.00024159,2]
[362143245,1748033448379,-500.0,0.00024162,2]
[362143246,1748033448389,-500.0,0.00024213,2]
[362143247,1748033448399,-500.0,0.00024347,2]
[362143248,1748033448410,-830.58459049,0.00024348,11]
[362143249,1748033448420,-787044.69172252,0.000245,60]
[362143250,1748033448431,-830.58459049,0.00024624,11]
[362143251,1748033448441,-293.85068442,0.00024633,2]
[362143252,1748033448451,-200.0,0.00024658,2]
[362143253,1748033448461,-330.46285418,0.00024658,2]
[362143254,1748033448471,-25034.95749113,0.0002466,2]
[362143255,1748033448480,-23322.34,0.000247,2]
[362143256,1748033448490,-158.10231729,0.00024767,2]
[362143257,1748033448500,-10182.0557748,0.000248,2]
[362143258,1748033448510,-267.46074303,0.00024845,2]
[362143259,1748033448519,-700.0,0.00024875,7]
[362143260,1748033448530,-830.58459049,0.000249,12]
[362143261,1748033448540,-158.10231729,0.00024932,2]
[362143262,1748033448550,-500.0,0.00024973,2]
[362143263,1748033448560,-500.0,0.00024973,2]
[362143264,1748033448569,-600.0,0.00024973,2]
[362143265,1748033448579,-1262.0,0.00024979,13]
[362143266,1748033448589,-3354.34372253,0.0002499,30]
[362143267,1748033448598,-160.0,0.0002499,10]
[362143268,1748033448608,-1000.0,0.00024999,8]
[362143269,1748033448618,-104775.30184044,0.00025,30]
[362143270,1748033448631,-354.929725,0.00025,30]
[362143271,1748033448648,-698.914193,0.00016438,2]
[362143272,1748033448658,-4087.59840542,0.00025,30]
[362143273,1748033448671,-1643.7,0.00025,30]
[362143274,1748033448935,-0.1248112,0.00025,30]
[362143286,1748033804393,7485.71884757,0.000265,120]
[362143289,1748034003155,28214.0214984,0.00027397,120]
[362143293,1748034052559,-2256.0,0.00013562,2]
[362143295,1748034095523,1198.037537,0.00027397,120]
[362143298,1748034253840,-4966.0,0.00013562,2]
[362143299,1748034266209,500.0,0.00027397,120]
[362143300,1748034267306,-34.0,0.00013562,2]
[362143301,1748034267332,-118.56404144,0.00013699,2]
[362143302,1748034283170,510.0,0.00027397,120]
[362143303,1748034306032,512.0,0.00027397,120]
[362143304,1748034318366,-4583.0,0.00013562,2]
[362143348,1748034632484,-136.53897441,0.00013699,2]
[362143349,1748034632494,-158.147005,0.00013699,2]
[362143350,1748034632503,-160.0,0.00015658,2]
[362143351,1748034632513,-199.93168083,0.00015661,2]
[362143352,1748034632523,-500.0,0.00015661,2]
[362143353,1748034632533,-300.0,0.00015661,2]
[362143354,1748034632543,-300.0,0.00015661,2]
[362143355,1748034632553,-545.0,0.00015661,2]
[362143356,1748034632563,-24900.0,0.00015662,2]
[362143357,1748034632574,-406.2278318,0.0001632,2]
[362143358,1748034632583,-461.38985697,0.00016338,2]
[362143359,1748034632593,-207.4,0.00016428,2]
[362143360,1748034632603,-3.91690057,0.00016428,2]
[362143361,1748034632615,-15056.10057961,0.00016428,2]
[362143362,1748034632625,-509.5999731,0.00016437,2]
[362143363,1748034632636,-500.0,0.00016437,2]
[362143364,1748034632646,-500.0,0.00016437,2]
[362143365,1748034632655,-259.96909579,0.00016437,2]
[362143367,1748034632665,-430.0,0.00016438,2]
[362143368,1748034632677,-244.7527298,0.00016438,2]
[362143369,1748034632687,-209.45132408,0.00016438,2]
[362143370,1748034632696,-386.42159089,0.00016438,2]
[362143371,1748034632706,-430.0,0.00016438,2]
[362143372,1748034632715,-430.0,0.00016438,2]
[362143373,1748034632725,-354.40250561,0.00016438,2]
[362143374,1748034632735,-430.0,0.00016438,2]
[362143375,1748034632744,-430.0,0.00016438,2]
[362143376,1748034632754,-430.0,0.00016438,2]
[362143377,1748034632763,-430.0,0.00016438,2]
[362143378,1748034632778,-430.0,0.00016438,2]
[362143379,1748034632788,-430.0,0.00016438,2]
[362143380,1748034632798,-362.78658945,0.00016438,2]
[362143381,1748034632808,-155.82,0.00016438,2]
[362143382,1748034632819,-430.0,0.00016438,2]
[362143383,1748034632829,-505.6,0.00016438,2]
[362143384,1748034632838,-197.18781882,0.00016438,2]
[362143385,1748034632849,-430.0,0.00016438,2]
[362143386,1748034632858,-400.0,0.00016438,2]
[362143387,1748034632868,-430.0,0.00016438,2]
[362143388,1748034632878,-430.0,0.00016438,2]
[362143389,1748034632888,-430.0,0.00016438,2]
[362143390,1748034632897,-430.0,0.00016438,2]
[362143391,1748034632906,-428.81033719,0.00016438,2]
[362143392,1748034632916,-430.0,0.00016438,2]
[362143393,1748034632925,-432.26426022,0.00016438,2]
[362143394,1748034632935,-430.0,0.00016438,2]
[362143395,1748034632944,-430.0,0.00016438,2]
[362143396,1748034632954,-430.0,0.00016438,2]
[362143397,1748034632963,-430.0,0.00016438,2]
[362143398,1748034632973,-370.0,0.00016438,2]
[362143399,1748034632982,-430.0,0.00016438,2]
[362143400,1748034632991,-430.0,0.00016438,2]
[362143401,1748034633001,-430.0,0.00016438,2]
[362143402,1748034633010,-430.0,0.00016438,2]
[362143403,1748034633019,-430.0,0.00016438,2]
[362143404,1748034633030,-430.0,0.00016438,2]
[362143405,1748034633039,-430.0,0.00016438,2]
[362143406,1748034633048,-530.0,0.00016438,2]
[362143407,1748034633058,-430.0,0.00016438,2]
[362143408,1748034633068,-430.0,0.00016438,2]
[362143409,1748034633077,-430.0,0.00016438,2]
[362143410,1748034633087,-430.0,0.00016438,2]
[362143411,1748034633097,-420.0,0.00016438,2]
[362143412,1748034633107,-430.0,0.00016438,2]
[362143413,1748034633116,-430.0,0.00016438,2]
[362143414,1748034633126,-165.34009342,0.00016438,2]
[362143415,1748034633136,-430.0,0.00016438,2]
[362143416,1748034633146,-430.0,0.00016438,2]
[362143417,1748034633156,-430.0,0.00016438,2]
[362143418,1748034633166,-300.0,0.00016438,2]
[362143419,1748034633176,-430.0,0.00016438,2]
[362143420,1748034633187,-430.0,0.00016438,2]
[362143421,1748034633196,-430.0,0.00016438,2]
[362143422,1748034633207,-430.0,0.00016438,2]
[362143423,1748034633217,-500.0,0.00016438,2]
[362143424,1748034633227,-430.0,0.00016438,2]
[362143425,1748034633236,-400.0,0.00016438,2]
[362143426,1748034633247,-430.0,0.00016438,2]
[362143427,1748034633257,-430.0,0.00016438,2]
[362143428,1748034633267,-430.0,0.00016438,2]
[362143429,1748034633277,-430.0,0.00016438,2]
[362143430,1748034633287,-430.0,0.00016438,2]
[362143431,1748034633297,-430.0,0.00016438,2]
[362143432,1748034633307,-400.57970592,0.00016438,2]
[362143433,1748034633317,-430.0,0.00016438,2]
[362143434,1748034633327,-430.0,0.00016438,2]
[362143435,1748034633337,-430.0,0.00016438,2]
[362143436,1748034633347,-430.0,0.00016438,2]
[362143437,1748034633357,-384.65800081,0.00016438,2]
[362143438,1748034633367,-430.0,0.00016438,2]
[362143439,1748034633376,-400.0,0.00016438,2]
[362143440,1748034633386,-430.0,0.00016438,2]
[362143441,1748034633396,-430.0,0.00016438,2]
[362143442,1748034633405,-500.0,0.00016438,2]
[362143443,1748034633415,-500.0,0.00016438,2]
[362143444,1748034633424,-500.0,0.00016438,2]
[362143445,1748034633435,-430.0,0.00016438,2]
[362143446,1748034633445,-509.93442164,0.00016438,2]
[362143447,1748034633455,-430.0,0.00016438,2]
[362143448,1748034633464,-430.0,0.00016438,2]
[362143449,1748034633474,-430.0,0.00016438,2]
[362143450,1748034633484,-430.0,0.00016438,2]
[362143451,1748034633494,-430.0,0.00016438,2]
[362143452,1748034633503,-430.0,0.00016438,2]
[362143453,1748034633513,-430.0,0.00016438,2]
[362143454,1748034633523,-430.0,0.00016438,2]
[362143455,1748034633533,-430.0,0.00016438,2]
[362143456,1748034633543,-430.0,0.00016438,2]
[362143457,1748034633552,-430.0,0.00016438,2]
[362143458,1748034633562,-430.0,0.00016438,2]
[362143459,1748034633581,-430.0,0.00016438,2]
[362143460,1748034633595,-430.0,0.00016438,2]
[362143461,1748034633606,-430.0,0.00016438,2]
[362143462,1748034633616,-430.0,0.00016438,2]
[362143463,1748034633628,-430.0,0.00016438,2]
[362143464,1748034633638,-430.0,0.00016438,2]
[362143465,1748034633648,-430.0,0.00016438,2]
[362143466,1748034633659,-430.0,0.00016438,2]
[362143467,1748034633669,-430.0,0.00016438,2]
[362143468,1748034633680,-430.0,0.00016438,2]
[362143469,1748034633689,-430.0,0.00016438,2]
[362143470,1748034633700,-430.0,0.00016438,2]
[362143471,1748034633710,-430.0,0.00016438,2]
[362143472,1748034633720,-430.0,0.00016438,2]
[362143473,1748034633730,-430.0,0.00016438,2]
[362143474,1748034633740,-401.6623163,0.00016438,2]
[362143475,1748034633751,-430.0,0.00016438,2]
[362143476,1748034633762,-295.06,0.00016438,2]
[362143477,1748034633775,-430.0,0.00016438,2]
[362143478,1748034633786,-151.72,0.00016438,2]
[362143479,1748034633797,-430.0,0.00016438,2]
[362143480,1748034633807,-400.0,0.00016438,2]
[362143481,1748034633817,-430.0,0.00016438,2]
[362143482,1748034633828,-430.0,0.00016438,2]
[362143483,1748034633838,-430.0,0.00016438,2]
[362143484,1748034633848,-430.0,0.00016438,2]
[362143485,1748034633859,-430.0,0.00016438,2]
[362143486,1748034633871,-430.0,0.00016438,2]
[362143487,1748034633882,-430.0,0.00016438,2]
[362143488,1748034633892,-430.0,0.00016438,2]
[362143489,1748034633903,-430.0,0.00016438,2]
[362143490,1748034633912,-430.0,0.00016438,2]
[362143491,1748034633923,-430.0,0.00016438,2]
[362143492,1748034633933,-430.0,0.00016438,2]
[362143493,1748034633943,-430.0,0.00016438,2]
[362143494,1748034633953,-430.0,0.00016438,2]
[362143495,1748034633963,-430.0,0.00016438,2]
[362143496,1748034633973,-163.31,0.00016438,2]
[362143497,1748034633984,-201.56117976,0.00016438,2]
[362143498,1748034633994,-430.0,0.00016438,2]
[362143499,1748034634005,-430.0,0.00016438,2]
[362143500,1748034634015,-406.99774531,0.00016438,2]
[362143501,1748034634025,-430.0,0.00016438,2]
[362143502,1748034634034,-359.14,0.00016438,2]
[362143503,1748034634045,-430.0,0.00016438,2]
[362143504,1748034634055,-440.00139921,0.00016438,2]
[362143505,1748034634065,-430.0,0.00016438,2]
[362143506,1748034634075,-430.0,0.00016438,2]
[362143507,1748034634086,-430.0,0.00016438,2]
[362143508,1748034634096,-430.0,0.00016438,2]
[362143509,1748034634106,-430.0,0.00016438,2]
[362143510,1748034634116,-430.0,0.00016438,2]
[362143511,1748034634127,-430.0,0.00016438,2]
[362143512,1748034634137,-430.0,0.00016438,2]
[362143513,1748034634148,-430.0,0.00016438,2]
[362143514,1748034634158,-430.0,0.00016438,2]
[362143515,1748034634168,-430.0,0.00016438,2]
[362143516,1748034634178,-430.0,0.00016438,2]
[362143517,1748034634189,-430.0,0.00016438,2]
[362143518,1748034634203,-430.0,0.00016438,2]
[362143519,1748034634214,-430.0,0.00016438,2]
[362143520,1748034634224,-386.75239882,0.00016438,2]
[362143667,1748034646645,-43.24760118,0.00016438,2]
[362143668,1748034646656,-150.58430178,0.00016438,2]
[362143669,1748034646666,-430.0,0.00016438,2]
[362143670,1748034646676,-430.0,0.00016438,2]
[362143671,1748034646686,-430.0,0.00016438,2]
[362143672,1748034646696,-430.0,0.00016438,2]
[362143673,1748034646707,-436.00576966,0.00016438,2]
[362143674,1748034646717,-430.0,0.00016438,2]
[362143675,1748034646727,-390.0,0.00016438,2]
[362143676,1748034646737,-491.58174277,0.00016438,2]
[362143677,1748034646747,-362.32075423,0.00016438,2]
[362143678,1748034646756,-495.49444282,0.00016438,2]
[362143679,1748034646766,-430.0,0.00016438,2]
[362143680,1748034646778,-430.0,0.00016438,2]
[362143681,1748034646789,-430.0,0.00016438,2]
[362143682,1748034646799,-430.0,0.00016438,2]
[362143683,1748034646808,-343.64927178,0.00016438,2]
[362143684,1748034646819,-450.0,0.00016438,2]
[362143685,1748034646828,-306.8816199,0.00016438,2]
[362143686,1748034646838,-409.15984828,0.00016438,2]
[362143687,1748034646847,-216.11035521,0.00016438,2]
[362143688,1748034646859,-430.0,0.00016438,2]
[362143689,1748034646869,-430.0,0.00016438,2]
[362143690,1748034646878,-430.0,0.00016438,2]
[362143691,1748034646888,-430.0,0.00016438,2]
[362143692,1748034646898,-430.0,0.00016438,2]
[362143693,1748034646908,-430.0,0.00016438,2]
[362143694,1748034646917,-500.0,0.00016438,2]
[362143695,1748034646927,-500.0,0.00016438,2]
[362143696,1748034646938,-500.0,0.00016438,2]
[362143697,1748034646948,-500.0,0.00016438,2]
[362143698,1748034646958,-500.0,0.00016438,2]
[362143699,1748034646968,-430.0,0.00016438,2]
[362143700,1748034646978,-500.0,0.00016711,2]
[362143701,1748034646990,-430.0,0.00016712,2]
[362143702,1748034647000,-430.0,0.00016712,2]
[362143703,1748034647010,-430.0,0.00016712,2]
[362143704,1748034647020,-430.0,0.00016712,2]
[362143705,1748034647029,-340.0,0.00016712,2]
[362143706,1748034647040,-400.0,0.00016712,2]
[362143707,1748034647050,-430.0,0.00016712,2]
[362143708,1748034647060,-430.0,0.00016712,2]
[362143709,1748034647070,-430.0,0.00016712,2]
[362143710,1748034647080,-340.0,0.00016712,2]
[362143711,1748034647090,-498.27694409,0.00016712,2]
[362143712,1748034647099,-270.0,0.00016712,2]
[362143713,1748034647110,-430.0,0.00016712,2]
[362143714,1748034647120,-430.0,0.00016712,2]
[362143715,1748034647130,-430.0,0.00016712,2]
[362143716,1748034647140,-430.0,0.00016712,2]
[362143717,1748034647151,-430.0,0.00016712,2]
[362143718,1748034647161,-430.0,0.00016712,2]
[362143719,1748034647171,-238.6776682,0.00016712,2]
[362143720,1748034647189,-191.3223318,0.00016712,2]
[362143721,1748034647198,-430.0,0.00016712,2]
[362143722,1748034647208,-430.0,0.00016712,2]
[362143723,1748034647219,-430.0,0.00016712,2]
[362143724,1748034647230,-182.6876682,0.00016712,2]
[362144388,1748035322328,898.528152,0.00027397,120]
[362144619,1748035831676,-158.147005,0.00013699,2]
[362144621,1748035831687,-403.71612491,0.000149,2]
[362144624,1748035831697,-300.0,0.00014999,2]
[362144639,1748035831841,-300.0,0.00014999,2]
[362144641,1748035831851,-300.0,0.00014999,2]
[362144643,1748035831862,-1200.0,0.00014999,2]
[362144645,1748035831872,-28619.22220419,0.00015,2]
[362144648,1748035831885,-511.84482317,0.00015,2]
[362144660,1748035831992,-9624.33157493,0.00015,2]
[362144662,1748035832002,-345.88774478,0.00015,2]
[362144664,1748035832011,-160.59428031,0.00015,2]
[362144666,1748035832021,-24900.0,0.00015709,2]
[362144668,1748035832031,-403.71612484,0.00016329,2]
[362144670,1748035832041,-420.0,0.00016416,2]
[362144672,1748035832050,-207.4,0.00016428,2]
[362144674,1748035832060,-10968.80672062,0.00016438,3]
[362144676,1748035832070,-430.0,0.00016438,2]
[362144678,1748035832080,-543.74102445,0.00016438,2]
[362144680,1748035832090,-400.0,0.00016438,2]
[362144682,1748035832100,-178.78997409,0.00016438,2]
[362144684,1748035832110,-430.0,0.00016438,2]
[362144686,1748035832119,-436.44515137,0.00016438,2]
[362144688,1748035832130,-430.0,0.00016438,2]
[362144690,1748035832139,-430.0,0.00016438,2]
[362144692,1748035832149,-433.43119107,0.00016438,2]
[362144694,1748035832159,-430.0,0.00016438,2]
[362144696,1748035832168,-400.0,0.00016438,2]
[362144698,1748035832178,-430.0,0.00016438,2]
[362144700,1748035832188,-430.0,0.00016438,2]
[362144702,1748035832198,-430.0,0.00016438,2]
[362144704,1748035832207,-430.0,0.00016438,2]
[362144706,1748035832217,-430.0,0.00016438,2]
[362144708,1748035832227,-430.0,0.00016438,2]
[362144710,1748035832236,-402.67606541,0.00016438,2]
[362144712,1748035832247,-161.79,0.00016438,2]
[362144714,1748035832257,-430.0,0.00016438,2]
[362144716,1748035832267,-430.0,0.00016438,2]
[362144719,1748035832277,-430.0,0.00016438,2]
[362144721,1748035832287,-430.0,0.00016438,2]
[362144722,1748035832297,-435.52434879,0.00016438,2]
[362144724,1748035832306,-430.0,0.00016438,2]
[362144727,1748035832316,-430.0,0.00016438,2]
[362144729,1748035832326,-430.0,0.00016438,2]
[362144730,1748035832335,-430.0,0.00016438,2]
[362144733,1748035832345,-253.79721746,0.00016438,2]
[362144735,1748035832355,-430.0,0.00016438,2]
[362144737,1748035832364,-430.0,0.00016438,2]
[362144739,1748035832374,-430.0,0.00016438,2]
[362144741,1748035832383,-500.0,0.00016438,2]
[362144743,1748035832392,-430.0,0.00016438,2]
[362144745,1748035832404,-430.0,0.00016438,2]
[362144746,1748035832413,-430.0,0.00016438,2]
[362144749,1748035832423,-388.08404812,0.00016438,2]
[362144750,1748035832436,-430.0,0.00016438,2]
[362144751,1748035832445,-430.0,0.00016438,2]
[362144752,1748035832455,-430.0,0.00016438,2]
[362144753,1748035832464,-430.0,0.00016438,2]
[362144754,1748035832474,-336.6361336,0.00016438,2]
[362144755,1748035832483,-450.0,0.00016438,2]
[362144756,1748035832493,-382.17911374,0.00016438,2]
[362144757,1748035832502,-345.4640596,0.00016438,2]
[362144758,1748035832511,-430.0,0.00016438,2]
[362144759,1748035832521,-430.0,0.00016438,2]
[362144760,1748035832531,-430.0,0.00016438,2]
[362144761,1748035832541,-434.42318492,0.00016438,2]
[362144762,1748035832550,-430.0,0.00016438,2]
[362144763,1748035832560,-500.0,0.00016438,2]
[362144764,1748035832569,-500.0,0.00016438,2]
[362144765,1748035832578,-500.0,0.00016438,2]
[362144766,1748035832588,-500.0,0.00016438,2]
[362144767,1748035832597,-432.22,0.00016438,2]
[362144768,1748035832607,-430.0,0.00016438,2]
[362144769,1748035832617,-430.0,0.00016438,2]
[362144770,1748035832626,-465.04,0.00016438,2]
[362144771,1748035832636,-430.0,0.00016438,2]
[362144773,1748035832645,-430.0,0.00016438,2]
[362144775,1748035832656,-284.4261781,0.00016438,2]
[362144777,1748035832665,-430.0,0.00016438,2]
[362144779,1748035832675,-430.0,0.00016438,2]
[362144781,1748035832685,-430.0,0.00016438,2]
[362144783,1748035832695,-430.0,0.00016438,2]
[362144786,1748035832705,-430.0,0.00016438,2]
[362144788,1748035832714,-430.0,0.00016438,2]
[362144790,1748035832724,-430.0,0.00016438,2]
[362144791,1748035832734,-430.0,0.00016438,2]
[362144793,1748035832743,-430.0,0.00016438,2]
[362144795,1748035832753,-430.0,0.00016438,2]
[362144797,1748035832763,-430.0,0.00016438,2]
[362144799,1748035832773,-430.0,0.00016438,2]
[362144801,1748035832783,-198.67538152,0.00016438,2]
[362144803,1748035832792,-430.0,0.00016438,2]
[362144806,1748035832801,-430.0,0.00016438,2]
[362144808,1748035832811,-430.0,0.00016438,2]
[362144810,1748035832821,-430.0,0.00016438,2]
[362144812,1748035832830,-430.0,0.00016438,2]
[362144814,1748035832839,-317.71783902,0.00016438,2]
[362144816,1748035832849,-451.55,0.00016438,2]
[362144818,1748035832859,-430.0,0.00016438,2]
[362144820,1748035832868,-430.0,0.00016438,2]
[362144822,1748035832877,-430.0,0.00016438,2]
[362144824,1748035832887,-430.0,0.00016438,2]
[362144826,1748035832897,-430.0,0.00016438,2]
[362144828,1748035832906,-292.15838293,0.00016438,2]
[362144830,1748035832915,-430.0,0.00016438,2]
[362144832,1748035832925,-430.0,0.00016438,2]
[362144834,1748035832934,-430.0,0.00016438,2]
[362144836,1748035832943,-430.0,0.00016438,2]
[362144838,1748035832953,-430.0,0.00016438,2]
[362144840,1748035832963,-430.0,0.00016438,2]
[362144842,1748035832972,-430.0,0.00016438,2]
[362144844,1748035832981,-430.0,0.00016438,2]
[362144846,1748035832991,-430.0,0.00016438,2]
[362144848,1748035833000,-430.0,0.00016438,2]
[362144850,1748035833009,-158.1884786,0.00016438,2]
[362144852,1748035833019,-172.86308581,0.00016438,2]
[362144854,1748035833028,-430.0,0.00016438,2]
[362144856,1748035833038,-430.0,0.00016438,2]
[362144858,1748035833048,-430.0,0.00016438,2]
[362144860,1748035833058,-259.93989196,0.00016438,2]
[362144862,1748035833068,-430.0,0.00016438,2]
[362144864,1748035833077,-430.0,0.00016438,2]
[362144866,1748035833087,-430.0,0.00016438,2]
[362144868,1748035833096,-430.0,0.00016438,2]
[362144870,1748035833105,-430.0,0.00016438,2]
[362144872,1748035833116,-430.0,0.00016438,2]
[362144874,1748035833126,-430.0,0.00016438,2]
[362144876,1748035833135,-430.0,0.00016438,2]
[362144878,1748035833146,-430.0,0.00016438,2]
[362144880,1748035833155,-430.0,0.00016438,2]